fUSD/lending_fUSD_20260111
["ID","MTS","AMOUNT","RATE_DAILY","PERIOD"]
[401277586,1768097440911,-500.0,0.00014254,2]
[401277587,1768097440920,-150.0,0.0001428,2]
[401277588,1768097440929,-622.88216606,0.0001428,2]
[401277589,1768097440938,-500.0,0.0001428,2]
[401277590,1768097440947,-843.0,0.00014309,2]
[401277591,1768097440957,-150.0,0.00014309,2]
[401277592,1768097440966,-500.0,0.00014309,2]
[401277593,1768097440976,-500.0,0.00014309,2]
[401277594,1768097440985,-208.30307507,0.00014334,2]
[401277595,1768097440994,-500.0,0.00014334,2]
[401277596,1768097441003,-1000.0,0.00014345,2]
[401277597,1768097441013,-9593.4951,0.00014345,2]
[401277598,1768097441023,-2500.0,0.00014345,2]
[401277599,1768097441033,-454.04310579,0.00014349,2]
[401277600,1768097441042,-10181.65249048,0.00014349,2]
[401277601,1768097441052,-843.0,0.00014363,2]
[401277602,1768097441066,-158.5859407,0.00014363,2]
[401277603,1768097441076,-458.04838682,0.00014363,2]
[401277604,1768097441086,-503.14661257,0.00014363,2]
[401277605,1768097441096,-500.0,0.00014389,2]
[401277606,1768097441106,-843.0,0.00014418,2]
[401277607,1768097441116,-666.52642717,0.00014434,2]
[401277608,1768097441126,-500.0,0.00014444,2]
[401277609,1768097441137,-514.27279391,0.00014444,2]
[401277610,1768097441146,-500.0,0.00014444,2]
[401277611,1768097441156,-500.0,0.00014444,2]
[401277612,1768097441166,-500.0,0.00014444,2]
[401277613,1768097441175,-500.0,0.00014444,2]
[401277614,1768097441185,-500.0,0.00014444,2]
[401277615,1768097441195,-500.0,0.00014444,2]
[401277616,1768097441204,-506.46687263,0.00014444,2]
[401277617,1768097441215,-500.0,0.00014444,2]
[401277618,1768097441225,-500.0,0.00014444,2]
[401277619,1768097441235,-500.0,0.00014444,2]
[401277620,1768097441245,-500.0,0.00014444,2]
[401277621,1768097441255,-500.0,0.00014444,2]
[401277622,1768097441269,-500.0,0.00014444,2]
[401277623,1768097441279,-500.0,0.00014444,2]
[401277624,1768097441289,-500.0,0.00014444,2]
[401277625,1768097441299,-500.0,0.00014444,2]
[401277626,1768097441309,-500.0,0.00014444,2]
[401277627,1768097441319,-500.0,0.00014444,2]
[401277628,1768097441329,-536.38716988,0.00014444,2]
[401277629,1768097441341,-500.0,0.00014444,2]
[401277630,1768097441350,-500.0,0.00014444,2]
[401277631,1768097441360,-500.0,0.00014444,2]
[401277632,1768097441370,-500.0,0.00014444,2]
[401277633,1768097441379,-500.0,0.00014444,2]
[401277634,1768097441389,-1093.48,0.00014444,2]
[401277635,1768097441399,-500.0,0.00014444,2]
[401277636,1768097441409,-500.0,0.00014444,2]
[401277637,1768097441420,-500.0,0.00014444,2]
[401277638,1768097441430,-500.0,0.00014444,2]
[401277639,1768097441439,-500.0,0.00014444,2]
[401277640,1768097441449,-500.0,0.00014444,2]
[401277641,1768097441461,-500.0,0.00014444,2]
[401277642,1768097441471,-500.0,0.00014444,2]
[401277643,1768097441480,-500.0,0.00014444,2]
[401277644,1768097441490,-500.0,0.00014444,2]
[401277645,1768097441500,-500.0,0.00014444,2]
[401277646,1768097441509,-500.0,0.00014444,2]
[401277647,1768097441518,-500.0,0.00014444,2]
[401277648,1768097441528,-500.0,0.00014444,2]
[401277649,1768097441537,-500.0,0.00014444,2]
[401277650,1768097441546,-500.0,0.00014444,2]
[401277651,1768097441555,-623.48676618,0.00014444,2]
[401277652,1768097441565,-500.0,0.00014444,2]
[401277653,1768097441574,-500.0,0.00014444,2]
[401277654,1768097441583,-500.0,0.00014444,2]
[401277655,1768097441593,-500.0,0.00014444,2]
[401277656,1768097441604,-500.0,0.00014444,2]
[401277657,1768097441613,-500.0,0.00014444,2]
[401277658,1768097441628,-500.0,0.00014444,2]
[401277659,1768097441638,-500.0,0.00014444,2]
[401277660,1768097441648,-500.0,0.00014444,2]
[401277661,1768097441658,-542.67459147,0.00014444,2]
[401277662,1768097441668,-500.0,0.00014444,2]
[401277663,1768097441678,-556.98175584,0.00014444,2]
[401277664,1768097441688,-500.0,0.00014444,2]
[401277665,1768097441698,-500.0,0.00014444,2]
[401277666,1768097441707,-500.0,0.00014444,2]
[401277667,1768097441718,-500.0,0.00014444,2]
[401277668,1768097441727,-500.0,0.00014444,2]
[401277669,1768097441737,-500.0,0.00014444,2]
[401277670,1768097441747,-500.0,0.00014444,2]
[401277671,1768097441758,-500.0,0.00014444,2]
[401277672,1768097441767,-151.0,0.00014444,2]
[401277673,1768097441778,-151.0,0.00014444,2]
[401277674,1768097441788,-201.404414,0.00014444,2]
[401277675,1768097441798,-9999.99,0.00014444,2]
[401277676,1768097441807,-9999.99,0.00014444,2]
[401277677,1768097441818,-299.99,0.00014444,2]
[401277678,1768097441828,-25620.44,0.00014444,2]
[401277679,1768097441838,-468.06,0.00014444,2]
[401277680,1768097441848,-175.50723282,0.00014444,2]
[401277681,1768097441859,-500.0,0.00014444,2]
[401277682,1768097441869,-500.0,0.00014444,2]
[401277683,1768097441879,-500.0,0.00014444,2]
[401277684,1768097441889,-500.0,0.00014444,2]
[401277685,1768097441899,-374.31350577,0.00014444,2]
[401277686,1768097441909,-500.0,0.00014444,2]
[401277687,1768097441918,-500.0,0.00014444,2]
[401277688,1768097441928,-500.0,0.00014444,2]
[401277689,1768097441938,-335.97688989,0.00014444,2]
[401277690,1768097441948,-172.77462412,0.00014444,2]
[401277691,1768097441958,-500.0,0.00014444,2]
[401277692,1768097441968,-500.0,0.00014444,2]
[401277693,1768097441977,-500.0,0.00014444,2]
[401277694,1768097441987,-500.0,0.00014444,2]
[401277695,1768097442001,-500.0,0.00014444,2]
[401277696,1768097442011,-500.0,0.00014444,2]
[401277697,1768097442020,-500.0,0.00014444,2]
[401277698,1768097442030,-500.0,0.00014444,2]
[401277699,1768097442039,-500.0,0.00014444,2]
[401277700,1768097442049,-500.0,0.00014444,2]
[401277701,1768097442059,-556.98473422,0.00014444,2]
[401277702,1768097442068,-500.0,0.00014444,2]
[401277703,1768097442078,-500.0,0.00014444,2]
[401277704,1768097442088,-500.0,0.00014444,2]
[401277705,1768097442098,-500.0,0.00014444,2]
[401277706,1768097442108,-500.0,0.00014444,2]
[401277707,1768097442118,-500.0,0.00014444,2]
[401277708,1768097442128,-500.0,0.00014444,2]
[401277709,1768097442138,-500.0,0.00014444,2]
[401277710,1768097442148,-500.0,0.00014444,2]
[401277711,1768097442158,-500.0,0.00014444,2]
[401277712,1768097442168,-500.0,0.00014444,2]
[401277713,1768097442177,-500.0,0.00014444,2]
[401277714,1768097442187,-200.3017813,0.00014444,2]
[401277715,1768097442197,-500.0,0.00014444,2]
[401277716,1768097442207,-500.0,0.00014444,2]
[401277717,1768097442217,-500.0,0.00014444,2]
[401277718,1768097442227,-500.0,0.00014444,2]
[401277719,1768097442237,-500.0,0.00014444,2]
[401277720,1768097442247,-500.0,0.00014444,2]
[401277721,1768097442257,-500.0,0.00014444,2]
[401277722,1768097442269,-500.0,0.00014444,2]
[401277723,1768097442279,-500.0,0.00014444,2]
[401277724,1768097442290,-500.0,0.00014444,2]
[401277725,1768097442300,-500.0,0.00014444,2]
[401277726,1768097442311,-500.0,0.00014444,2]
[401277727,1768097442321,-500.0,0.00014444,2]
[401277728,1768097442332,-500.0,0.00014444,2]
[401277729,1768097442343,-500.0,0.00014444,2]
[401277730,1768097442352,-500.0,0.00014444,2]
[401277731,1768097442362,-500.0,0.00014444,2]
[401277732,1768097442372,-500.0,0.00014444,2]
[401277733,1768097442386,-500.0,0.00014444,2]
[401277734,1768097442395,-500.0,0.00014444,2]
[401277735,1768097442406,-537.13231561,0.00014444,2]
[401277736,1768097442415,-537.13231561,0.00014444,2]
[401277737,1768097442426,-537.13231561,0.00014444,2]
[401277738,1768097442435,-600.0,0.00014444,2]
[401277739,1768097442445,-500.0,0.00014444,2]
[401277740,1768097442455,-500.0,0.00014444,2]
[401277741,1768097442464,-500.0,0.00014444,2]
[401277742,1768097442474,-300.0,0.00014444,2]
[401277743,1768097442484,-157.562447,0.00014445,2]
[401277744,1768097442496,-151.0,0.00014445,2]
[401277745,1768097442507,-151.0,0.00014445,2]
[401277746,1768097442517,-151.0,0.00014445,2]
[401277747,1768097442527,-151.0,0.00014445,2]
[401277748,1768097442537,-503.69857476,0.00014473,2]
[401277749,1768097442547,-500.0,0.00014473,2]
[401277750,1768097442557,-500.0,0.00014473,2]
[401277751,1768097442567,-500.0,0.00014473,2]
[401277752,1768097442576,-540.30872116,0.00014473,2]
[401277753,1768097442586,-500.0,0.00014473,2]
[401277754,1768097442596,-166.87374433,0.00014473,2]
[401277755,1768097442605,-500.0,0.00014473,2]
[401277756,1768097442615,-500.0,0.00014473,2]
[401277757,1768097442624,-500.0,0.00014473,2]
[401277758,1768097442634,-500.0,0.00014473,2]
[401277759,1768097442644,-500.0,0.00014473,2]
[401277760,1768097442653,-500.0,0.00014473,2]
[401277761,1768097442662,-500.0,0.00014473,2]
[401277762,1768097442672,-500.0,0.00014473,2]
[401277763,1768097442682,-500.0,0.00014473,2]
[401277764,1768097442691,-500.0,0.00014473,2]
[401277765,1768097442700,-500.0,0.00014473,2]
[401277766,1768097442710,-500.0,0.00014473,2]
[401277767,1768097442720,-503.4081818,0.00014473,2]
[401277768,1768097442731,-500.0,0.00014473,2]
[401277769,1768097442740,-500.15222599,0.00014473,2]
[401277770,1768097442750,-500.76760994,0.00014473,2]
[401277771,1768097442763,-500.0,0.00014473,2]
[401277772,1768097442774,-500.0,0.00014473,2]
[401277773,1768097442791,-162.5649796,0.00014473,2]
[401277774,1768097442800,-501.1018115,0.00014473,2]
[401277775,1768097442810,-166.34069269,0.00014473,2]
[401277776,1768097442820,-500.0,0.00014473,2]
[401277777,1768097442835,-486.742849,0.00014473,2]
[401277778,1768097442845,-500.0,0.00014473,2]
[401277779,1768097442855,-217.01160126,0.00014473,2]
[401277780,1768097442865,-500.0890643,0.00014473,2]
[401277781,1768097442874,-500.26339188,0.00014473,2]
[401277782,1768097442884,-501.77392466,0.00014473,2]
[401277783,1768097442894,-500.0,0.00014473,2]
[401277784,1768097442904,-500.0,0.00014473,2]
[401277785,1768097442914,-500.0,0.00014473,2]
[401277786,1768097442924,-500.0,0.00014473,2]
[401277787,1768097442934,-169.14530325,0.00014473,2]
[401277788,1768097442943,-500.0,0.00014473,2]
[401277789,1768097442953,-163.38938361,0.00014473,2]
[401277790,1768097442964,-843.0,0.00014473,2]
[401277791,1768097442974,-409.0,0.00014482,2]
[401277792,1768097442985,-500.0,0.00014499,2]
[401277793,1768097442995,-500.0,0.00014518,2]
[401277794,1768097443005,-843.0,0.00014528,2]
[401277795,1768097443016,-666.0,0.00014542,2]
[401277796,1768097443026,-124066.0884789,0.00014543,2]
[401277797,1768097443036,-151.0,0.00014543,2]
[401277798,1768097443045,-500.0,0.00014554,2]
[401277799,1768097443056,-843.0,0.00014583,2]
[401277800,1768097443065,-202.29907206,0.00014604,2]
[401277801,1768097443076,-500.0,0.00014604,2]
[401277802,1768097443087,-200.0,0.00014604,2]
[401277803,1768097443097,-500.0,0.00014608,2]
[401277804,1768097443108,-666.0,0.00014624,2]
[401277805,1768097443119,-452610.6843437,0.00014625,2]
[401277806,1768097443129,-33859.7730205,0.00014625,2]
[401277807,1768097443139,-151.0,0.00014625,2]
[401277808,1768097443149,-151.0,0.00014625,2]
[401277809,1768097443162,-151.0,0.00014625,2]
[401277810,1768097443172,-222.880412,0.00014625,2]
[401277811,1768097443182,-287.000349,0.00014625,2]
[401277812,1768097443191,-151.0,0.00014625,2]
[401277813,1768097443202,-151.0,0.00014625,2]
[401277814,1768097443211,-151.0,0.00014625,2]
[401277815,1768097443221,-151.0,0.00014625,2]
[401277816,1768097443231,-151.0,0.00014625,2]
[401277818,1768097443240,-7757.4028382,0.00014626,2]
[401277819,1768097443250,-843.0,0.00014637,2]
[401277820,1768097443261,-1057.617,0.00014644,2]
[401277821,1768097443274,-500.0,0.00014644,2]
[401277822,1768097443284,-500.0,0.00014644,2]
[401277823,1768097443293,-500.0,0.00014644,2]
[401277824,1768097443302,-500.0,0.00014644,2]
[401277825,1768097443313,-500.0,0.00014644,2]
[401277826,1768097443323,-500.0,0.00014644,2]
[401277827,1768097443333,-376.06769,0.00014644,2]
[401277828,1768097443343,-200.0,0.00014645,2]
[401277829,1768097443353,-151.0,0.00014645,2]
[401277830,1768097443363,-231.90025202,0.00014645,2]
[401277831,1768097443373,-234.23629977,0.00014645,2]
[401277832,1768097443382,-1901.78950089,0.00014645,2]
[401277833,1768097443393,-2881.42046361,0.00014645,2]
[401277834,1768097443403,-5922.7912397,0.00014662,2]
[401277835,1768097443412,-151.0,0.00014662,2]
[401277836,1768097443422,-500.0,0.00014663,2]
[401277837,1768097443433,-843.0,0.00014692,2]
[401277838,1768097443442,-500.0,0.00014718,2]
[401277839,1768097443453,-1093.48,0.00014718,2]
[401277840,1768097443463,-843.0,0.00014747,2]
[401277841,1768097443473,-500.0,0.00014773,2]
[401277842,1768097443483,-500.0,0.00014792,2]
[401277843,1768097443493,-843.0,0.00014802,2]
[401277844,1768097443503,-500.0,0.00014828,2]
[401277845,1768097443512,-843.0,0.00014857,2]
[401277846,1768097443522,-500.0,0.00014882,2]
[401277847,1768097443532,-843.0,0.00014911,2]
[401277848,1768097443541,-500.0,0.00014937,2]
[401277849,1768097443551,-151.0,0.00014966,2]
[401277850,1768097443561,-151.0,0.00014966,2]
[401277851,1768097443571,-151.0,0.00014966,2]
[401277852,1768097443806,-265.501811,0.00014966,2]
[401277853,1768097443861,-843.0,0.00014966,2]
[401277854,1768097443872,-188.75821632,0.00014992,2]
[401277856,1768097443882,-1093.48,0.00014992,2]
[401277858,1768097443891,-163.43,0.00015,2]
[401277860,1768097443902,-666.0,0.0001502,2]
[401277863,1768097443912,-500.36871529,0.00015021,2]
[401277865,1768097443922,-500.78603367,0.00015021,2]
[401277867,1768097443932,-500.73774285,0.00015021,2]
[401277868,1768097443943,-413.2521776,0.00015021,2]
[401277869,1768097443953,-500.45639995,0.00015021,2]
[401277870,1768097443962,-1000.0,0.00015021,2]
[401277871,1768097443972,-1000.0,0.00015021,2]
[401277872,1768097443982,-1000.0,0.00015021,2]
[401277873,1768097443992,-501.18596631,0.00015021,2]
[401277874,1768097444002,-500.91201932,0.00015021,2]
[401277875,1768097444012,-500.66892907,0.00015021,2]
[401277876,1768097444028,-501.45467854,0.00015021,2]
[401277877,1768097444041,-834.14746868,0.00015021,2]
[401277878,1768097444052,-1000.0,0.00015021,2]
[401277879,1768097444063,-1000.65344749,0.00015021,2]
[401277880,1768097444072,-1000.0,0.00015021,2]
[401277881,1768097444082,-414.52858729,0.00015021,2]
[401277883,1768097444091,-439.76863979,0.00015021,2]
[401277884,1768097444102,-312.58479127,0.00015021,2]
[401277885,1768097444112,-1000.72432279,0.00015021,2]
[401277886,1768097444123,-1000.64603075,0.00015021,2]
[401277887,1768097444134,-1000.0,0.00015021,2]
[401277888,1768097444144,-1000.0,0.00015021,2]
[401277889,1768097444154,-1000.0,0.00015021,2]
[401277890,1768097444164,-1000.0,0.00015021,2]
[401277891,1768097444174,-1000.0,0.00015021,2]
[401277892,1768097444184,-843.0,0.00015021,2]
[401277893,1768097444194,-151.0,0.00015021,2]
[401277894,1768097444204,-151.0,0.00015021,2]
[401277895,1768097444214,-297.887346,0.00015021,2]
[401277896,1768097444224,-500.0,0.00015066,2]
[401277897,1768097444234,-151.0,0.00015068,2]
[401277898,1768097444244,-151.0,0.00015068,2]
[401277899,1768097444254,-151.0,0.00015068,2]
[401277900,1768097444266,-151.0,0.00015068,2]
[401277901,1768097444276,-151.0,0.00015068,2]
[401277902,1768097444286,-151.0,0.00015068,2]
[401277903,1768097444296,-190.081858,0.00015068,2]
[401277904,1768097444307,-843.0,0.00015076,2]
[401277905,1768097444317,-843.0,0.00015131,2]
[401277906,1768097444326,-500.0,0.00015152,2]
[401277907,1768097444336,-201.90165963,0.00015152,2]
[401277908,1768097444347,-843.0,0.00015185,2]
[401277909,1768097444356,-6008.0,0.00015208,2]
[401277910,1768097444366,-843.0,0.0001524,2]
[401277911,1768097444376,-1093.48,0.00015266,2]
[401277912,1768097444386,-166.66,0.00015291,2]
[401277913,1768097444396,-843.0,0.00015295,2]
[401277914,1768097444406,-500.0,0.0001534,2]
[401277915,1768097444416,-601.95150876,0.00015343,2]
[401277916,1768097444426,-843.0,0.0001535,2]
[401277917,1768097444436,-843.0,0.00015404,2]
[401277918,1768097444447,-855.55475477,0.00015459,2]
[401277919,1768097444457,-250.0,0.00015461,2]
[401277920,1768097444467,-265.32254765,0.00015461,2]
[401277921,1768097444477,-250.0,0.00015461,2]
[401277922,1768097444487,-195.0,0.00015461,2]
[401277923,1768097444497,-5079.81029235,0.00015461,2]
[401277924,1768097444507,-300.0,0.00015461,2]
[401277925,1768097444517,-302.28990112,0.00015461,2]
[401277926,1768097444527,-10181.65249045,0.0001551,2]
[401277927,1768097444537,-1093.48,0.0001554,2]
[401277928,1768097444547,-360.89813484,0.00015568,2]
[401277929,1768097444557,-1002.66235587,0.00015568,2]
[401277930,1768097444566,-506.09348145,0.00015568,2]
[401277931,1768097444576,-500.70000128,0.00015568,2]
[401277932,1768097444586,-1001.8033265,0.00015568,2]
[401277933,1768097444595,-501.91736672,0.00015568,2]
[401277934,1768097444605,-1500.0,0.00015568,2]
[401277935,1768097444615,-1002.89440631,0.00015568,2]
[401277936,1768097444625,-1005.24529231,0.00015568,2]
[401277937,1768097444635,-500.71827791,0.00015568,2]
[401277938,1768097444645,-1203.0,0.00015611,2]
[401277939,1768097444654,-166.66,0.00015613,2]
[401277940,1768097444664,-500.0,0.00015614,2]
[401277941,1768097444674,-250.0,0.00015619,2]
[401277942,1768097444684,-309.2010049,0.00015619,2]
[401277943,1768097444694,-655.51043038,0.00015644,2]
[401277944,1768097444704,-300.0,0.00015647,2]
[401277945,1768097444714,-195.0,0.00015647,2]
[401277946,1768097444723,-162.76186007,0.00015659,2]
[401277947,1768097444733,-998.0,0.00015659,2]
[401277948,1768097444743,-344.07605335,0.00015659,2]
[401277949,1768097444753,-1680.0,0.00015668,2]
[401277950,1768097444767,-505.51863312,0.000157,2]
[401277951,1768097444778,-151.0,0.00015799,2]
[401277952,1768097444788,-151.0,0.00015799,2]
[401277953,1768097444798,-151.0,0.00015799,2]
[401277954,1768097444808,-1093.48,0.00015814,2]
[401277955,1768097444818,-500.0,0.00015888,2]
[401277956,1768097444827,-314.65014888,0.000159,2]
[401277957,1768097444837,-166.66,0.00015935,2]
[401277958,1768097444846,-153.79,0.00016006,2]
[401277959,1768097444856,-580.65,0.00016021,2]
[401277960,1768097444866,-150.0,0.00016028,2]
[401277961,1768097444876,-1949.63,0.00016031,2]
[401277962,1768097444886,-500.0,0.00016065,2]
[401277963,1768097444896,-999.0,0.00016078,3]
[401277964,1768097444906,-216.06,0.00016088,2]
[401277965,1768097444916,-1093.48,0.00016088,2]
[401277966,1768097444926,-4741.21,0.00016109,2]
[401277967,1768097444936,-2074.12,0.0001611,2]
[401277968,1768097444945,-151.0,0.00016116,2]
[401277969,1768097444955,-151.0,0.00016116,2]
[401277970,1768097444965,-9999.99,0.00016116,2]
[401277971,1768097444975,-1002.55051193,0.00016116,2]
[401277972,1768097444986,-503.77263826,0.00016162,2]
[401277973,1768097444995,-1000.0,0.00016167,2]
[401277974,1768097445005,-166.66,0.00016257,2]
[401277975,1768097445014,-533.50662158,0.00016338,2]
[401277976,1768097445024,-1093.48,0.00016362,2]
[401277977,1768097445034,-671.53877715,0.00016437,2]
[401277978,1768097445043,-150.0,0.00016438,2]
[401277979,1768097445054,-500.0,0.00016438,2]
[401277980,1768097445063,-500.0,0.00016438,2]
[401277981,1768097445073,-500.0,0.00016438,2]
[401277982,1768097445083,-500.0,0.00016438,2]
[401277983,1768097445092,-500.0,0.00016438,2]
[401277984,1768097445102,-500.0,0.00016438,2]
[401277985,1768097445112,-500.0,0.00016438,2]
[401277986,1768097445122,-500.0,0.00016438,2]
[401277987,1768097445131,-500.0,0.00016438,2]
[401277988,1768097445141,-500.0,0.00016438,2]
[401277989,1768097445151,-500.0,0.00016438,2]
[401277990,1768097445160,-500.0,0.00016438,2]
[401277991,1768097445171,-500.0,0.00016438,2]
[401277992,1768097445182,-500.0,0.00016438,2]
[401277993,1768097445193,-500.0,0.00016438,2]
[401277994,1768097445203,-500.0,0.00016438,2]
[401277995,1768097445214,-500.0,0.00016438,2]
[401277996,1768097445224,-500.0,0.00016438,2]
[401277997,1768097445234,-500.0,0.00016438,2]
[401277998,1768097445244,-500.0,0.00016438,2]
[401277999,1768097445254,-500.0,0.00016438,2]
[401278000,1768097445266,-500.0,0.00016438,2]
[401278001,1768097445277,-500.0,0.00016438,2]
[401278002,1768097445287,-500.0,0.00016438,2]
[401278003,1768097445298,-500.0,0.00016438,2]
[401278004,1768097445309,-500.0,0.00016438,2]
[401278005,1768097445318,-500.0,0.00016438,2]
[401278006,1768097445328,-500.0,0.00016438,2]
[401278007,1768097445338,-500.0,0.00016438,2]
[401278008,1768097445348,-500.0,0.00016438,2]
[401278009,1768097445358,-500.0,0.00016438,2]
[401278010,1768097445367,-500.0,0.00016438,2]
[401278011,1768097445377,-500.0,0.00016438,2]
[401278012,1768097445387,-500.0,0.00016438,2]
[401278013,1768097445397,-500.0,0.00016438,2]
[401278014,1768097445407,-500.0,0.00016438,2]
[401278015,1768097445417,-500.0,0.00016438,2]
[401278016,1768097445428,-500.0,0.00016438,2]
[401278017,1768097445439,-500.0,0.00016438,2]
[401278018,1768097445449,-500.0,0.00016438,2]
[401278019,1768097445459,-500.0,0.00016438,2]
[401278020,1768097445469,-500.0,0.00016438,2]
[401278021,1768097445479,-500.0,0.00016438,2]
[401278022,1768097445488,-500.0,0.00016438,2]
[401278024,1768097445498,-500.0,0.00016438,2]
[401278027,1768097445508,-500.0,0.00016438,2]
[401278029,1768097445518,-500.0,0.00016438,2]
[401278031,1768097445527,-500.0,0.00016438,2]
[401278033,1768097445538,-500.0,0.00016438,2]
[401278035,1768097445547,-500.0,0.00016438,2]
[401278036,1768097445557,-500.0,0.00016438,2]
[401278037,1768097445567,-500.0,0.00016438,2]
[401278038,1768097445577,-500.0,0.00016438,2]
[401278039,1768097445587,-500.0,0.00016438,2]
[401278040,1768097445597,-500.0,0.00016438,2]
[401278041,1768097445607,-500.0,0.00016438,2]
[401278042,1768097445616,-500.0,0.00016438,2]
[401278043,1768097445626,-500.0,0.00016438,2]
[401278044,1768097445635,-500.0,0.00016438,2]
[401278045,1768097445645,-500.0,0.00016438,2]
[401278046,1768097445655,-500.0,0.00016438,2]
[401278047,1768097445665,-500.0,0.00016438,2]
[401278048,1768097445675,-500.0,0.00016438,2]
[401278049,1768097445684,-500.0,0.00016438,2]
[401278050,1768097445694,-500.0,0.00016438,2]
[401278051,1768097445703,-500.0,0.00016438,2]
[401278052,1768097445713,-500.0,0.00016438,2]
[401278053,1768097445723,-500.0,0.00016438,2]
[401278054,1768097445732,-500.0,0.00016438,2]
[401278055,1768097445742,-500.0,0.00016438,2]
[401278056,1768097445751,-500.0,0.00016438,2]
[401278057,1768097445761,-500.0,0.00016438,2]
[401278058,1768097445771,-500.0,0.00016438,2]
[401278059,1768097445780,-500.0,0.00016438,2]
[401278060,1768097445790,-500.0,0.00016438,2]
[401278061,1768097445799,-500.0,0.00016438,2]
[401278062,1768097445808,-500.0,0.00016438,2]
[401278063,1768097445818,-500.0,0.00016438,2]
[401278064,1768097445827,-500.0,0.00016438,2]
[401278065,1768097445836,-500.0,0.00016438,2]
[401278066,1768097445845,-500.0,0.00016438,2]
[401278067,1768097445855,-500.0,0.00016438,2]
[401278068,1768097445864,-500.0,0.00016438,2]
[401278069,1768097445873,-500.0,0.00016438,2]
[401278070,1768097445883,-178.00352479,0.00016438,2]
[401278071,1768097445894,-151.0,0.00016438,2]
[401278072,1768097445905,-151.0,0.00016438,2]
[401278073,1768097445915,-151.0,0.00016438,2]
[401278074,1768097445925,-151.0,0.00016438,2]
[401278075,1768097445935,-151.0,0.00016438,2]
[401278076,1768097445944,-261.399688,0.00016438,2]
[401278077,1768097445955,-5578.13,0.00016438,2]
[401278078,1768097445966,-151.0,0.00016438,2]
[401278079,1768097445975,-151.0,0.00016438,2]
[401278080,1768097445984,-519.0,0.00016438,2]
[401278081,1768097445993,-184.371786,0.00016438,2]
[401278082,1768097446003,-172.333605,0.00016438,2]
[401278083,1768097446012,-172.333605,0.00016438,2]
[401278084,1768097446023,-172.333605,0.00016438,2]
[401278085,1768097446034,-172.333605,0.00016438,2]
[401278086,1768097446047,-172.333605,0.00016438,2]
[401278087,1768097446058,-172.333605,0.00016438,2]
[401278088,1768097446067,-172.333605,0.00016438,2]
[401278089,1768097446076,-172.333605,0.00016438,2]
[401278090,1768097446086,-172.333605,0.00016438,2]
[401278091,1768097446095,-172.333605,0.00016438,2]
[401278092,1768097446104,-172.333605,0.00016438,2]
[401278093,1768097446114,-172.333605,0.00016438,2]
[401278094,1768097446123,-172.333605,0.00016438,2]
[401278095,1768097446134,-172.333605,0.00016438,2]
[401278096,1768097446143,-172.333605,0.00016438,2]
[401278097,1768097446153,-172.333605,0.00016438,2]
[401278098,1768097446162,-172.333605,0.00016438,2]
[401278099,1768097446172,-172.333605,0.00016438,2]
[401278100,1768097446182,-172.333605,0.00016438,2]
[401278101,1768097446192,-172.3336,0.00016438,2]